bitfinex-derivatives/quotes_BTCF0:USTF0_20210705
["timestamp","ask_amount","ask_price","bid_price","bid_amount"]
[1625468788632,1.35661332,34232.0,34227.0,0.96230176]
[1625468788716,1.35661332,34232.0,34227.0,1.35065176]
[1625468788814,1.41361332,34232.0,34227.0,1.40965176]
[1625468789167,1.41361332,34232.0,34227.0,1.30965176]
[1625468789969,0.057,34232.0,34227.0,1.30965176]
[1625468790629,0.057,34232.0,34231.0,0.13671317]
[1625468790827,0.057,34232.0,34231.0,0.25471317]
[1625468792379,0.057,34232.0,34231.0,0.19571317]
[1625468792478,0.057,34232.0,34231.0,0.13671317]
[1625468792580,3.8037,34232.0,34231.0,0.13671317]
[1625468793430,0.057,34232.0,34231.0,0.13671317]
[1625468793530,1.40763687,34232.0,34231.0,0.13671317]
[1625468794032,1.46663687,34232.0,34231.0,0.13671317]
[1625468794132,5.37683687,34232.0,34231.0,0.13671317]
[1625468794235,4.0262,34232.0,34231.0,0.13671317]
[1625468794534,5.37600835,34232.0,34231.0,0.13671317]
[1625468794634,5.61658379,34232.0,34231.0,0.13671317]
[1625468795586,5.61658379,34232.0,34227.0,0.48115088]
[1625468795683,5.85105379,34232.0,34227.0,0.54015088]
[1625468795785,5.91005379,34232.0,34227.0,0.48115088]
[1625468796184,5.91005379,34232.0,34227.0,0.24057544]
[1625468796285,1.34736711,34228.0,34218.0,0.24057544]
[1625468796384,1.34736711,34228.0,34226.0,0.006]
[1625468796385,0.051,34227.0,34226.0,0.006]
[1625468796488,1.34736711,34228.0,34226.0,0.006]
[1625468796686,1.82863833,34227.0,34226.0,0.006]
[1625468797088,0.48115088,34227.0,34226.0,0.006]
[1625468799293,0.47515088,34227.0,34225.0,0.006]
[1625468800648,0.53415088,34227.0,34225.0,0.006]
[1625468800847,0.47515088,34227.0,34225.0,0.006]
[1625468800947,0.53415088,34227.0,34225.0,0.006]
[1625468801500,0.47515088,34227.0,34225.0,0.006]
[1625468802302,4.97475088,34227.0,34226.0,0.004]
[1625468803056,0.47315088,34227.0,34226.0,0.004]
[1625468804461,0.47315088,34227.0,34226.0,0.063]
[1625468804810,0.47315088,34227.0,34226.0,0.30357544]
[1625468805314,0.47115088,34227.0,34226.0,0.30357544]
[1625468807118,0.47115088,34227.0,34226.0,0.24457544]
[1625468807671,0.47115088,34227.0,34226.0,0.004]
[1625468808229,0.47115088,34227.0,34223.0,0.002]
[1625468808327,0.47115088,34227.0,34223.0,0.061]
[1625468808781,0.47115088,34227.0,34226.0,0.24057544]
[1625468810885,0.53015088,34227.0,34226.0,0.24057544]
[1625468810984,0.53015088,34227.0,34223.0,0.002]
[1625468811084,0.75594088,34227.0,34223.0,0.061]
[1625468811185,1.76368706,34227.0,34223.0,0.061]
[1625468812037,1.76368706,34227.0,34223.0,0.002]
[1625468812136,1.76368706,34227.0,34223.0,0.061]
[1625468812238,1.76368706,34227.0,34224.0,0.00439719]
[1625468812337,1.76368706,34227.0,34224.0,0.06339719]
[1625468812785,1.76368706,34227.0,34224.0,0.059]
[1625468812886,0.24057544,34225.0,34224.0,0.059]
[1625468812986,0.29957544,34225.0,34224.0,0.059]
[1625468813186,0.24057544,34225.0,34224.0,0.059]
[1625468813288,0.24057544,34225.0,34224.0,0.06339708]
[1625468815291,0.24057544,34225.0,34224.0,0.12239708]
[1625468815992,0.25501154,34225.0,34224.0,0.12239708]
[1625468817699,0.25501154,34225.0,34224.0,0.06339708]
[1625468817799,0.24057544,34225.0,34224.0,0.059]
[1625468817899,0.24057544,34225.0,34224.0,0.118]
[1625468818151,0.24057544,34225.0,34224.0,0.059]
[1625468818250,0.25501209,34225.0,34224.0,0.059]
[1625468821906,1.26345888,34225.0,34224.0,0.059]
[1625468824065,1.26345888,34225.0,34224.0,0.06339773]
[1625468824362,1.26345888,34225.0,34224.0,0.059]
[1625468826368,2.44157528,34225.0,34224.0,0.059]
[1625468826669,2.44157528,34225.0,34224.0,0.118]
[1625468826769,2.44157528,34225.0,34224.0,0.12239756]
[1625468826990,2.44157528,34225.0,34224.0,0.362973]
[1625468827070,1.26345888,34225.0,34224.0,0.362973]
[1625468827778,1.02288344,34225.0,34224.0,0.362973]
[1625468827975,0.01443665,34225.0,34224.0,0.362973]
[1625468828474,0.01443569,34226.0,34224.0,0.362973]
[1625468828575,1.02611852,34226.0,34224.0,0.362973]
[1625468828676,0.01443332,34225.0,34224.0,0.362973]
[1625468829478,0.01443312,34226.0,34224.0,0.362973]
[1625468829730,0.01443312,34226.0,34224.0,0.35857544]
[1625468829731,0.33745423,34225.0,34224.0,0.35857544]
[1625468830029,0.33745423,34225.0,34224.0,0.36297292]
[1625468830130,1.01185774,34227.0,34224.0,0.36297292]
[1625468830530,0.08465604,34227.0,34226.0,0.34392914]
[1625468830631,0.08465604,34227.0,34226.0,0.78940914]
[1625468830829,0.08465604,34227.0,34226.0,0.79380608]
[1625468831029,0.42279181,34228.0,34226.0,1.03438152]
[1625468831130,0.42279181,34228.0,34226.0,0.69045238]
[1625468831331,0.42279181,34228.0,34227.0,0.00439694]
[1625468831430,0.42279181,34228.0,34227.0,0.06339694]
[1625468831530,0.08467459,34228.0,34227.0,0.46626379]
[1625468831881,0.33853812,34228.0,34227.0,0.12239694]
[1625468832281,0.24657544,34232.0,34227.0,0.12239694]
[1625468832632,1.0151497,34230.0,34229.0,0.0860555]
[1625468832732,1.0151497,34230.0,34229.0,0.2040555]
[1625468832932,1.0151497,34230.0,34229.0,0.20845256]
[1625468833031,1.0151497,34230.0,34229.0,0.449028]
[1625468833133,1.0151497,34230.0,34229.0,0.79325073]
[1625468833586,1.0151497,34230.0,34229.0,0.449028]
[1625468834039,1.0151497,34230.0,34229.0,0.70730581]
[1625468835390,1.0151497,34230.0,34229.0,0.79337519]
[1625468835492,1.0151497,34230.0,34229.0,0.73437519]
[1625468835942,1.0151497,34230.0,34229.0,0.39004188]
[1625468836443,1.0151497,34230.0,34229.0,0.38564482]
[1625468836644,1.0151497,34230.0,34229.0,0.44464482]
[1625468836895,2.19949775,34230.0,34229.0,0.35857544]
[1625468837794,3.55272179,34230.0,34229.0,0.29957544]
[1625468839151,3.55272179,34230.0,34229.0,0.35857544]
[1625468839698,7.51382179,34230.0,34229.0,0.35857544]
[1625468840047,3.55272179,34230.0,34229.0,0.35857544]
[1625468840748,0.24057544,34232.0,34229.0,0.35857544]
[1625468841149,4.47328398,34230.0,34229.0,0.35857544]
[1625468843302,4.47328398,34230.0,34229.0,0.44481944]
[1625468843801,4.47328398,34230.0,34229.0,0.70354263]
[1625468845206,4.47328398,34230.0,34229.0,0.78979756]
[1625468845706,4.47328398,34230.0,34229.0,0.70354263]
[1625468846166,4.47328398,34230.0,34229.0,0.4448329]
[1625468846409,4.47328398,34230.0,34229.0,0.3858329]
[1625468846609,4.47328398,34230.0,34229.0,0.73086126]
[1625468846960,4.47328398,34230.0,34229.0,0.67186126]
[1625468847062,4.47328398,34230.0,34229.0,0.3268329]
[1625468848564,4.47328398,34230.0,34229.0,0.24057544]
[1625468849468,4.47328398,34230.0,34228.0,0.43129469]
[1625468849469,4.56138398,34230.0,34228.0,0.43129469]
[1625468849580,4.54671514,34230.0,34228.0,0.43129469]
[1625468849868,0.01443123,34229.0,34228.0,0.43129469]
[1625468849965,0.27996123,34229.0,34228.0,0.43129469]
[1625468850066,0.27996123,34229.0,34226.0,0.002]
[1625468850067,6.08964228,34229.0,34226.0,0.002]
[1625468850365,0.01443162,34228.0,34223.0,0.00010085]
[1625468850468,5.74835463,34227.0,34222.0,0.43742743]
[1625468850578,5.80735463,34227.0,34220.0,0.69828388]
[1625468850667,5.86435463,34227.0,34220.0,0.75728388]
[1625468851017,0.01443257,34226.0,34220.0,0.69828388]
[1625468851118,5.74447665,34223.0,34220.0,0.008]
[1625468851219,0.48115088,34221.0,34220.0,0.008]
[1625468851318,0.72932088,34221.0,34220.0,0.008]
[1625468851620,6.46879088,34221.0,34220.0,0.008]
[1625468852230,4.94957401,34221.0,34220.0,0.008]
[1625468852319,4.94957401,34221.0,34220.0,0.108]
[1625468852570,9.75987401,34221.0,34220.0,0.108]
[1625468853220,9.75387401,34221.0,34220.0,0.1]
[1625468854071,4.94357401,34221.0,34220.0,0.1]
[1625468854428,6.46224726,34221.0,34220.0,0.1]
[1625468855025,4.94357401,34221.0,34220.0,0.1]
[1625468856728,4.94357401,34221.0,34220.0,0.42944]
[1625468859231,4.94357401,34221.0,34220.0,0.67001544]
[1625468861089,9.13837401,34221.0,34220.0,0.67001544]
[1625468861190,4.94357401,34221.0,34220.0,0.67001544]
[1625468865000,5.00057401,34221.0,34220.0,0.67001544]
[1625468865900,0.78032088,34221.0,34220.0,0.67001544]
[1625468866000,0.53215088,34221.0,34220.0,0.67001544]
[1625468866757,0.47515088,34221.0,34220.0,0.67001544]
[1625468866854,0.47515088,34221.0,34220.0,0.72901544]
[1625468866855,0.23457544,34221.0,34220.0,0.72901544]
[1625468866998,1.51751712,34225.0,34220.0,0.78801544]
[1625468867260,1.51751712,34225.0,34224.0,0.24057544]
[1625468867355,1.51751712,34225.0,34224.0,0.29957544]
[1625468867956,1.51751712,34225.0,34224.0,0.39957544]
[1625468868305,1.51751712,34225.0,34224.0,0.29957544]
[1625468869009,2.86984826,34225.0,34224.0,0.29957544]
[1625468869211,2.92684826,34225.0,34224.0,0.29957544]
[1625468869307,2.92684826,34225.0,34224.0,0.059]
[1625468869760,4.27669539,34225.0,34224.0,0.059]
[1625468870411,4.78298831,34225.0,34224.0,0.059]
[1625468871362,5.02356375,34225.0,34224.0,0.059]
[1625468873465,4.96656375,34225.0,34224.0,0.059]
[1625468874569,3.61671662,34225.0,34224.0,0.57645]
[1625468875022,3.61671662,34225.0,34224.0,0.58084606]
[1625468875121,3.61671662,34225.0,34224.0,0.63984606]
[1625468875368,3.61671662,34225.0,34224.0,0.8804215]
[1625468875569,3.61671662,34225.0,34224.0,1.57031879]
[1625468875922,2.43505411,34225.0,34224.0,2.6051099]
[1625468877023,1.42217642,34225.0,34224.0,3.81229446]
[1625468878686,2.43488245,34225.0,34224.0,2.6051099]
[1625468878789,2.43488245,34225.0,34224.0,2.5461099]
[1625468879038,3.61567509,34225.0,34224.0,1.51131879]
[1625468879279,3.61567509,34225.0,34224.0,1.45231879]
[1625468879552,3.61567509,34225.0,34224.0,0.52184606]
[1625468879779,3.92807174,34225.0,34224.0,0.51745]
[1625468879932,3.92807174,34225.0,34223.0,1.20730845]
[1625468880031,5.27691315,34225.0,34223.0,0.51743279]
[1625468880181,0.057,34224.0,34223.0,0.51743279]
[1625468880382,0.13045733,34224.0,34223.0,0.51743279]
[1625468880485,4.85107159,34224.0,34222.0,0.51748146]
[1625468880784,4.7157333,34223.0,34220.0,0.24057544]
[1625468880883,0.057,34222.0,34220.0,0.24057544]
[1625468881084,0.07145802,34222.0,34220.0,0.24057544]
[1625468881184,4.71477802,34221.0,34220.0,0.24057544]
[1625468881284,4.77177802,34221.0,34220.0,0.24057544]
[1625468881383,4.78623597,34221.0,34220.0,0.24057544]
[1625468881483,5.02681141,34221.0,34220.0,0.24057544]
[1625468884895,5.02681141,34221.0,34220.0,0.24496625]
[1625468886746,5.02681141,34221.0,34220.0,0.24057544]
[1625468887499,5.02681141,34221.0,34220.0,0.24496629]
[1625468887948,5.02681141,34221.0,34220.0,0.24057544]
[1625468888202,5.02681141,34221.0,34220.0,0.24496627]
[1625468889201,4.96981141,34221.0,34220.0,0.24496627]
[1625468889515,4.95535346,34221.0,34220.0,0.24496627]
[1625468889609,3.60834618,34221.0,34220.0,0.76234423]
[1625468890053,3.60834618,34221.0,34220.0,1.51116063]
[1625468890757,3.60834618,34221.0,34220.0,1.57016063]
[1625468890855,3.36777074,34221.0,34220.0,1.57016063]
[1625468890955,2.18911832,34221.0,34220.0,1.57016063]
[1625468891408,2.18911832,34221.0,34220.0,2.6049568]
[1625468891756,2.18911832,34221.0,34220.0,2.5459568]
[1625468892063,2.18911832,34221.0,34220.0,2.4869568]
[1625468892310,3.37178999,34221.0,34220.0,1.45216063]
[1625468892409,3.37178999,34221.0,34220.0,1.51116063]
[1625468892760,3.37178999,34221.0,34220.0,2.54599195]
[1625468892860,3.37178999,34221.0,34220.0,2.48699195]
[1625468893161,3.37178999,34221.0,34220.0,2.54599195]
[1625468893261,3.37178999,34221.0,34220.0,1.51116063]
[1625468893562,3.61236543,34221.0,34220.0,1.51116063]
[1625468893712,3.61236543,34221.0,34220.0,2.54617172]
[1625468894162,2.42969376,34221.0,34220.0,2.54617172]
[1625468894564,2.42969376,34221.0,34220.0,2.60517172]
[1625468895565,2.42969376,34221.0,34220.0,3.81296383]
[1625468897066,1.41939621,34221.0,34220.0,5.19324878]
[1625468897466,1.41939621,34221.0,34220.0,5.13424878]
[1625468897667,1.41939621,34221.0,34220.0,3.75396383]
[1625468897767,2.43545347,34221.0,34220.0,3.75396383]
[1625468898419,3.62177345,34221.0,34220.0,2.54617172]
[1625468898720,2.43545347,34221.0,34220.0,3.75408548]
[1625468899323,3.62198219,34221.0,34220.0,2.54617172]
[1625468900577,3.62198219,34221.0,34220.0,2.48717172]
[1625468900775,3.62198219,34221.0,34220.0,2.54617172]
[1625468901679,3.62198219,34221.0,34220.0,2.48717172]
[1625468902528,3.62198219,34221.0,34220.0,2.60517172]
[1625468902630,3.62198219,34221.0,34220.0,2.54617172]
[1625468902728,3.62198219,34221.0,34220.0,2.60517172]
[1625468902828,3.62198219,34221.0,34220.0,2.54617172]
[1625468903180,3.62198219,34221.0,34220.0,2.60517172]
[1625468903280,3.62198219,34221.0,34220.0,3.81350316]
[1625468906289,2.43545347,34221.0,34220.0,3.81350316]
[1625468907795,2.43545347,34221.0,34220.0,8.59080316]
[1625468908046,2.43545347,34221.0,34220.0,3.81350316]
[1625468908196,1.41939621,34221.0,34220.0,5.19479149]
[1625468909547,0.74580839,34221.0,34220.0,5.19479149]
[1625468909949,0.24057544,34221.0,34220.0,6.74869199]
[1625468913857,0.75092892,34221.0,34220.0,5.19479149]
[1625468915109,1.43138171,34221.0,34220.0,5.19479149]
[1625468915568,2.45167182,34221.0,34220.0,5.19479149]
[1625468916513,1.43138171,34221.0,34220.0,5.19479149]
[1625468918015,1.43138171,34221.0,34220.0,5.29479149]
[1625468918117,2.4518919,34221.0,34220.0,5.29479149]
[1625468924180,1.43138171,34221.0,34220.0,5.29479149]
[1625468927684,1.43138171,34221.0,34220.0,9.79069149]
[1625468928335,1.43138171,34221.0,34220.0,5.29479149]
[1625468929085,2.45095328,34221.0,34220.0,5.29479149]
[1625468931846,1.43138171,34221.0,34220.0,5.29479149]
[1625468932196,2.45041705,34221.0,34220.0,5.29479149]
[1625468935805,2.50741705,34221.0,34220.0,5.29479149]
[1625468936408,2.50741705,34221.0,34220.0,5.23579149]
[1625468936508,2.52187633,34221.0,34220.0,5.23579149]
[1625468936609,2.52187633,34221.0,34220.0,5.17679149]
[1625468936862,7.02607633,34221.0,34220.0,5.17679149]
[1625468936961,3.70947393,34221.0,34220.0,3.79550316]
[1625468938861,5.06624527,34221.0,34220.0,3.79550316]
[1625468939263,5.06624527,34221.0,34220.0,3.91350316]
[1625468939364,5.06624527,34221.0,34220.0,3.85450316]
[1625468939815,3.70947393,34221.0,34220.0,3.85450316]
[1625468940712,3.70947393,34221.0,34220.0,3.91350316]
[1625468941716,3.70947393,34221.0,34220.0,3.85450316]
[1625468941816,3.91702393,34221.0,34220.0,3.85450316]
[1625468942017,7.66452393,34221.0,34220.0,3.85450316]
[1625468942468,3.91702393,34221.0,34220.0,3.85450316]
[1625468943018,7.44002393,34221.0,34220.0,3.85450316]
[1625468943169,8.79620612,34221.0,34220.0,3.85450316]
[1625468943771,5.27320612,34221.0,34220.0,3.85450316]
[1625468943972,5.27320612,34221.0,34220.0,3.91350316]
[1625468945024,3.91702393,34221.0,34220.0,3.91350316]
[1625468945124,3.70947393,34221.0,34220.0,3.91350316]
[1625468946328,3.70947393,34221.0,34220.0,5.29569707]
[1625468947981,3.69501465,34221.0,34220.0,5.29569707]
[1625468949484,3.69501465,34221.0,34220.0,5.62869707]
[1625468949886,3.69501465,34221.0,34220.0,5.56969707]
[1625468950014,3.69501465,34221.0,34220.0,5.27012163]
[1625468950121,3.76848741,34221.0,34220.0,4.93712163]
[1625468950304,3.82748741,34221.0,34220.0,4.93712163]
[1625468950489,6.70805524,34221.0,34220.0,0.62176879]
[1625468950603,6.64905524,34221.0,34220.0,0.62176879]
[1625468950739,6.70805524,34221.0,34220.0,0.62176879]
[1625468950843,6.70805524,34221.0,34220.0,0.27726189]
[1625468950940,6.70805524,34221.0,34220.0,0.27287106]
[1625468951140,6.70805524,34221.0,34220.0,0.27725608]
[1625468951242,6.70805524,34221.0,34220.0,0.10438502]
[1625468951392,6.70805524,34221.0,34220.0,0.1]
[1625468951890,6.94863068,34221.0,34220.0,0.1]
[1625468954601,6.88963068,34221.0,34220.0,0.1]
[1625468955151,6.83063068,34221.0,34220.0,0.1]
[1625468956305,6.88963068,34221.0,34220.0,0.1]
[1625468959360,6.94863068,34221.0,34220.0,0.1]
[1625468964575,6.88963068,34221.0,34220.0,0.1]
[1625468976665,6.87515792,34221.0,34220.0,0.1]
[1625468976862,6.88962711,34221.0,34220.0,0.1]
[1625468977064,5.36463058,34221.0,34220.0,0.1]
[1625468978718,6.87601967,34221.0,34220.0,0.1]
[1625468979871,6.87601967,34221.0,34220.0,0.1043857]
[1625468983530,6.81701967,34221.0,34220.0,0.1043857]
[1625468983784,5.30563058,34221.0,34220.0,0.1043857]
[1625468984583,6.80435897,34221.0,34220.0,0.1]
[1625468984885,5.30562995,34221.0,34220.0,0.10438558]
[1625468984984,5.36462995,34221.0,34220.0,0.10438558]
[1625468985333,6.87783307,34221.0,34220.0,0.10438558]
[1625468985684,6.81883307,34221.0,34220.0,0.10438558]
[1625468986034,6.87783307,34221.0,34220.0,0.10438558]
[1625468986436,5.36462995,34221.0,34220.0,0.10438558]
[1625468986737,6.8799066,34221.0,34220.0,0.10438558]
[1625468986838,7.1934366,34221.0,34220.0,0.10438558]
[1625468986987,7.2524366,34221.0,34220.0,0.10438558]
[1625468987491,7.2524366,34221.0,34220.0,0.1]
[1625468988747,7.1344366,34221.0,34220.0,0.1]
[1625468988860,7.1344366,34221.0,34220.0,0.10438559]
[1625468989044,7.1934366,34221.0,34220.0,0.10438559]
[1625468989241,7.1344366,34221.0,34220.0,0.10438559]
[1625468989343,6.8209066,34221.0,34220.0,0.10438559]
[1625468990340,6.7639066,34221.0,34220.0,0.43871559]
[1625468990643,5.24862995,34221.0,34220.0,0.61124302]
[1625468991095,5.24862995,34221.0,34220.0,0.95629261]
[1625468991598,5.24862995,34221.0,34220.0,0.95630487]
[1625468991945,5.24862995,34221.0,34220.0,1.3013694]
[1625468992146,5.30562995,34221.0,34220.0,1.3013694]
[1625468992246,5.24862995,34221.0,34220.0,1.3013694]
[1625468992346,5.24862995,34221.0,34220.0,0.61128094]
[1625468994450,5.24862995,34221.0,34220.0,0.95642573]
[1625468994906,5.24862995,34221.0,34220.0,1.30168277]
[1625468995908,5.24862995,34221.0,34220.0,0.95647925]
[1625468996308,5.24862995,34221.0,34220.0,1.30181912]
[1625468996911,5.24862995,34221.0,34220.0,0.78386038]
[1625468997362,5.24862995,34221.0,34220.0,1.30183876]
[1625468997713,5.24862995,34221.0,34220.0,0.95651992]
[1625468998964,5.53976995,34221.0,34220.0,0.62218992]
[1625468999265,5.53976995,34221.0,34220.0,0.61780433]
[1625468999364,5.59876995,34221.0,34220.0,0.61780433]
[1625468999467,5.65776995,34221.0,34220.0,0.61780433]
[1625468999815,7.17181991,34221.0,34220.0,0.1]
[1625469000314,8.85385047,34221.0,34220.0,0.1]
[1625469003270,8.88847407,34221.0,34220.0,0.1]
[1625469004578,8.85385047,34221.0,34220.0,0.1]
[1625469005578,8.79685047,34221.0,34220.0,0.1]
[1625469005779,7.11481991,34221.0,34220.0,0.1]
[1625469005878,7.17181991,34221.0,34220.0,0.1]
[1625469008033,8.85347176,34221.0,34220.0,0.1]
[1625469010935,13.82027176,34221.0,34220.0,0.1]
[1625469011037,8.85347176,34221.0,34210.0,0.84624348]
[1625469011139,8.85347176,34221.0,34206.0,1.55469651]
[1625469011140,9.44057176,34221.0,34206.0,0.48628056]
[1625469011275,9.44057176,34221.0,34206.0,0.28328056]
[1625469011461,0.04909996,34220.0,34206.0,0.19598056]
[1625469011542,0.04909996,34220.0,34190.0,0.9955]
[1625469011543,8.82634603,34207.0,34202.0,0.95052723]
[1625469011652,0.057,34206.0,34202.0,0.56912723]
[1625469011762,0.059,34202.0,34199.0,1.38206222]
[1625469011850,0.059,34202.0,34199.0,0.85386222]
[1625469011939,0.059,34202.0,34199.0,0.64086222]
[1625469012042,0.059,34202.0,34199.0,0.20616222]
[1625469012143,0.059,34202.0,34190.0,2.66607778]
[1625469012242,0.96230176,34191.0,34190.0,2.66607778]
[1625469012340,1.32403176,34191.0,34190.0,2.66607778]
[1625469012441,1.44203176,34191.0,34190.0,2.66607778]
[1625469012541,1.38303176,34191.0,34190.0,2.35097778]
[1625469012640,1.38303176,34191.0,34190.0,2.21657778]
[1625469012741,5.21793176,34191.0,34190.0,2.18357778]
[1625469012842,5.21793176,34191.0,34190.0,0.456]
[1625469012944,5.15893176,34191.0,34172.0,0.2929]
[1625469013041,5.73241587,34191.0,34172.0,0.2929]
[1625469013142,5.73241587,34191.0,34169.0,1.72846713]
[1625469013243,5.71793176,34191.0,34169.0,1.72846713]
[1625469013644,1.44203176,34191.0,34169.0,1.72846713]
[1625469013746,1.66241458,34183.0,34160.0,1.75901754]
[1625469013845,1.66241458,34183.0,34177.0,0.139]
[1625469013945,1.72141458,34183.0,34177.0,0.139]
[1625469014145,1.66241458,34183.0,34177.0,0.139]
[1625469014246,0.72172632,34178.0,34177.0,0.139]
[1625469017451,0.72172632,34178.0,34177.0,0.198]
[1625469017752,0.48115088,34178.0,34177.0,0.198]
[1625469017852,1.65392056,34195.0,34177.0,0.198]
[1625469017980,1.65392056,34195.0,34177.0,0.52623]
[1625469018272,0.24057544,34195.0,34187.0,0.24057544]
[1625469018353,0.24057544,34195.0,34190.0,3.85126503]
[1625469018453,0.24057544,34195.0,34190.0,3.91026503]
[1625469020161,0.24057544,34195.0,34190.0,0.059]
[1625469020262,0.24057544,34192.0,34190.0,0.059]
[1625469020763,0.24057544,34192.0,34190.0,0.159]
[1625469021114,0.29757544,34191.0,34190.0,0.159]
[1625469021315,0.35657544,34191.0,34190.0,0.159]
[1625469021415,0.35657544,34191.0,34190.0,0.1]
[1625469021616,5.23897544,34191.0,34190.0,0.1]
[1625469022066,5.23897544,34191.0,34177.0,0.08]
[1625469022168,5.52872544,34191.0,34177.0,0.198]
[1625469022267,0.72172632,34178.0,34177.0,0.198]
[1625469022369,1.02247632,34178.0,34177.0,0.198]
[1625469027687,0.72172632,34178.0,34177.0,0.198]
[1625469029335,0.66272632,34178.0,34177.0,0.139]
[1625469029437,0.66272632,34178.0,34177.0,0.198]
[1625469030687,0.66272632,34178.0,34177.0,0.2835456]
[1625469031138,0.66272632,34178.0,34177.0,0.198]
[1625469031538,0.66272632,34178.0,34177.0,0.28353522]
[1625469032542,0.66272632,34178.0,34177.0,0.198]
[1625469034747,0.66272632,34178.0,34177.0,0.28352377]
[1625469035653,0.66272632,34178.0,34177.0,0.198]
[1625469037812,0.66272632,34178.0,34177.0,0.20238297]
[1625469043529,0.66272632,34178.0,34177.0,0.28790235]
[1625469044981,0.66272632,34178.0,34177.0,0.28351938]
[1625469045229,0.66272632,34178.0,34177.0,0.2879018]
[1625469051439,0.66272632,34178.0,34177.0,0.5873718]
[1625469051840,0.66272632,34178.0,34177.0,0.50185242]
[1625469054194,0.66272632,34178.0,34177.0,1.53004528]
[1625469054695,0.66272632,34178.0,34177.0,0.50185242]
[1625469055145,0.66272632,34178.0,34177.0,1.53022101]
[1625469055846,0.66272632,34178.0,34177.0,1.53888293]
[1625469057246,0.66272632,34178.0,34177.0,2.73957509]
[1625469059603,0.66272632,34178.0,34177.0,2.73091317]
[1625469059903,0.66272632,34178.0,34177.0,2.73957554]
[1625469063365,0.66272632,34178.0,34177.0,2.73091317]
[1625469064570,0.66272632,34178.0,34177.0,1.53022101]
[1625469065671,0.66272632,34178.0,34177.0,2.73500665]
[1625469067728,0.66272632,34178.0,34177.0,4.11358403]
[1625469068932,0.66272632,34178.0,34177.0,4.12224623]
[1625469069186,0.66272632,34178.0,34177.0,4.11358403]
[1625469069282,0.66272632,34178.0,34177.0,8.35133017]
[1625469069382,0.66272632,34178.0,34177.0,9.9046728]
[1625469069481,0.09009736,34182.0,34177.0,9.91333497]
[1625469069683,0.09009736,34182.0,34178.0,0.01034629]
[1625469069782,0.09009736,34182.0,34178.0,0.13272809]
[1625469069881,0.09009736,34182.0,34178.0,0.1223818]
[1625469069983,0.09009736,34182.0,34181.0,3.62465281]
[1625469070083,0.09009736,34182.0,34181.0,3.68365281]
[1625469070183,0.09009736,34182.0,34181.0,3.74265281]
[1625469070384,0.09009736,34182.0,34181.0,3.74703444]
[1625469070485,0.006,34182.0,34181.0,3.98760988]
[1625469070585,0.006,34182.0,34181.0,4.22818532]
[1625469071386,0.006,34182.0,34181.0,4.91857328]
[1625469071938,0.09023473,34182.0,34181.0,4.91857328]
[1625469072594,0.33081017,34182.0,34181.0,4.91857328]
[1625469072691,0.24657544,34182.0,34181.0,4.91857328]
[1625469072993,0.33087444,34182.0,34181.0,4.91857328]
[1625469073293,0.24657544,34182.0,34181.0,4.91857328]
[1625469073994,4.69427544,34182.0,34181.0,4.91857328]
[1625469074097,4.75127544,34182.0,34181.0,4.91857328]
[1625469074497,6.43911595,34182.0,34181.0,4.91857328]
[1625469075445,6.71286595,34182.0,34181.0,4.91857328]
[1625469076251,2.26516595,34182.0,34181.0,4.91857328]
[1625469076348,2.25916595,34182.0,34181.0,4.91857328]
[1625469077300,1.98541595,34182.0,34181.0,4.91857328]
[1625469077652,3.16827744,34182.0,34181.0,3.53775316]
[1625469078802,3.16827744,34182.0,34181.0,3.05660228]
[1625469080806,3.16827744,34182.0,34181.0,4.44007277]
[1625469082157,1.98541595,34182.0,34181.0,4.44007277]
[1625469082357,1.92841595,34182.0,34181.0,4.44007277]
[1625469082909,1.98541595,34182.0,34181.0,4.44007277]
[1625469090230,3.17083695,34182.0,34181.0,4.44007277]
[1625469096190,4.52573383,34182.0,34181.0,4.44007277]
[1625469096938,4.52573383,34182.0,34181.0,4.38107277]
[1625469097039,4.80063383,34182.0,34181.0,4.38107277]
[1625469097441,4.80063383,34182.0,34181.0,1.78938468]
[1625469099398,6.32310586,34182.0,34181.0,1.78938468]
[1625469099947,6.32310586,34182.0,34181.0,0.75376959]
[1625469101251,6.32310586,34182.0,34181.0,0.69476959]
[1625469101351,6.82965009,34182.0,34181.0,1.21388039]
[1625469102253,6.82965009,34182.0,34181.0,0.09086891]
[1625469102654,6.82965009,34182.0,34179.0,0.74742196]
[1625469102756,0.48115088,34180.0,34179.0,0.80642196]
[1625469102854,0.59715088,34180.0,34179.0,0.74742196]
[1625469103054,0.59715088,34180.0,34179.0,0.75180213]
[1625469103354,0.59715088,34180.0,34179.0,0.52330387]
[1625469103506,0.59715088,34180.0,34179.0,0.17730387]
[1625469103605,0.65615088,34180.0,34176.0,1.13772941]
[1625469103805,0.65615088,34180.0,34171.0,0.24057544]
[1625469103806,3.51672667,34180.0,34171.0,0.24057544]
[1625469104106,3.51672667,34180.0,34172.0,0.00437551]
[1625469104206,3.45772667,34180.0,34172.0,0.06337551]
[1625469104306,1.34613152,34173.0,34172.0,0.06337551]
[1625469104405,1.68206152,34173.0,34172.0,0.06337551]
[1625469104757,6.8578124,34173.0,34172.0,0.06337551]
[1625469104961,2.1632124,34173.0,34172.0,0.06337551]
[1625469105057,1.68206152,34173.0,34172.0,0.12237551]
[1625469105157,1.34613152,34173.0,34172.0,0.12237551]
[1625469105359,3.152e-05,34173.0,34172.0,0.12237551]
[1625469105563,1.51437693,34176.0,34172.0,0.06337551]
[1625469105670,1.5165021,34180.0,34172.0,0.36158958]
[1625469105862,1.5165021,34180.0,34173.0,0.01036896]
[1625469105961,1.5165021,34180.0,34173.0,0.07374315]
[1625469106060,1.5165021,34180.0,34178.0,4.5495]
[1625469106162,1.5240937,34186.0,34178.0,4.6675]
[1625469106261,0.006,34184.0,34178.0,4.6675]
[1625469106461,0.006,34184.0,34179.0,0.00437403]
[1625469106561,0.006,34184.0,34179.0,0.33834403]
[1625469106763,0.006,34184.0,34183.0,0.72172632]
[1625469106966,0.006,34184.0,34183.0,0.29883]
[1625469107071,0.065,34184.0,34183.0,0.29883]
[1625469107265,0.065,34184.0,34183.0,0.30319936]
[1625469107266,0.124,34184.0,34183.0,0.30319936]
[1625469107372,0.181,34184.0,34183.0,0.30319936]
[1625469107682,1.69632946,34184.0,34183.0,0.30319936]
[1625469107973,1.63732946,34184.0,34183.0,0.24419936]
[1625469108072,1.75532946,34184.0,34183.0,0.00436936]
[1625469108174,3.37752522,34184.0,34183.0,0.00436936]
[1625469108273,0.05463064,34182.0,34167.0,1.9165]
[1625469108373,0.11363064,34182.0,34167.0,1.9165]
[1625469108475,0.057,34181.0,34167.0,1.9165]
[1625469108574,1.51277628,34178.0,34167.0,1.9165]